Cogmind - Beta 9.6 @@@ ROGUE MODE // 2020.05.30 @ 14:37:11 Player: RNGesus Result: Self-destructed Performance ------------- Evolutions (1) 500 Regions Visited (5) 1000 Robots Destroyed (77) 385 Value Destroyed (1729) 1729 Prototype IDs (25) 500 Alien Tech Used (0) 0 Bonus (554) 554 TOTAL SCORE: 4668 Bonus ------- High Alert Combat Kills 73 Follower Combat Kills 197 Aligned with FarCom 300 Friendly Fire -16 Cogmind --------- Core Integrity 26/400 Matter 285/300 Energy 265/265 System Corruption 3% Temperature Cool (0) Movement Walking (180) Ox2 Location -9/Exiles Parts ------- > --- POWER (1) -------- Improved Ion Engine > --- PROPULSION (2) --- Aluminum Leg Aluminum Leg > --- UTILITY (4) ------ Disposable Heat Sink Large Storage Unit Large Storage Unit Hardened Light Armor Plating > --- WEAPON (2) ------- Heavy Assault Rifle Heavy Assault Rifle > --- INVENTORY (16) --- Light Nuclear Core Aluminum Leg Aluminum Leg Improved Flight Unit Improved Flight Unit Improved Flight Unit Improved Heat Sink Medium Storage Unit Improved Signal Interpreter Hacking Suite Improved Medium Laser Improved Medium Laser Grenade Launcher Rocket Launcher Mining Claw Deploy-a-Sentry Peak State ------------ > --- POWER ------------ Improved Ion Engine > --- PROPULSION ------- Aluminum Leg Improved Flight Unit > --- UTILITY ---------- Disposable Heat Sink Large Storage Unit Large Storage Unit Hardened Light Armor Plating > --- WEAPON ----------- Autogun Autogun > --- INVENTORY -------- Light Nuclear Core Aluminum Leg Aluminum Leg VTOL Module Improved Flight Unit Improved Flight Unit Disposable Heat Sink Medium Storage Unit Signal Interpreter Hardened Light Armor Plating Hacking Suite Heavy Assault Rifle Heavy Assault Rifle Autogun Grenade Launcher Mining Claw [Rating: 19] Favorites ----------- Power Improved Ion Engine Engine Improved Ion Engine Propulsion Aluminum Leg Leg Aluminum Leg Wheel Wheel Flight Unit Improved Flight Unit Utility Large Storage Unit Device Disposable Heat Sink Storage Large Storage Unit Protection Hardened Light Armor Plating Weapon Heavy Assault Rifle Energy Gun EM Pulse Gun Ballistic Gun Heavy Assault Rifle Launcher Grenade Launcher Slashing Weapon Mining Claw Build | -11 -10 -10 -9 -9 -9 ------- Run | Scr Mat Min Mat Min Exi Slots Evolved 2 | . . . 2 . . Power . | . . . . . . Propulsion . | . . . . . . Utility 2 | . . . 2 . . Weapon . | . . . . . . Parts Attached 68 | 6 18 3 34 7 . Power 4 | 1 1 . 2 . . Engine 4 | 1 1 . 2 . . Core . | . . . . . . Reactor . | . . . . . . Propulsion 19 | 2 4 1 8 4 . Treads . | . . . . . . Leg 17 | 2 4 . 7 4 . Wheel 1 | . . 1 . . . Hover . | . . . . . . Flight 1 | . . . 1 . . Utility 14 | 1 4 . 8 1 . Device 3 | . . . 3 . . Storage 5 | 1 2 . 2 . . Processor . | . . . . . . Hackware . | . . . . . . Protection 6 | . 2 . 3 1 . Artifact . | . . . . . . Weapon 31 | 2 9 2 16 2 . Energy Gun 9 | 2 1 1 5 . . Energy Cannon . | . . . . . . Ballistic Gun 15 | . 5 . 8 2 . Ballistic Cannon . | . . . . . . Launcher 6 | . 3 1 2 . . Special Weapon . | . . . . . . Impact Weapon . | . . . . . . Slashing Weapon 1 | . . . 1 . . Piercing Weapon . | . . . . . . Special Melee Weapon . | . . . . . . Unidentified Prototypes 3 | . . . 3 . . Parts Lost 22 | . 7 . 11 4 . Power 2 | . 1 . 1 . . Propulsion 7 | . 3 . 3 1 . Utility 5 | . . . 4 1 . Weapon 8 | . 3 . 3 2 . Highest Loss Streak 3 | . 3 . 3 2 . Average Slot Usage (%) 94 | . 86 93 96 99 100 Engine 11 | . 14 14 10 11 11 Leg 21 | . 23 14 20 21 22 Device 8 | . . . 13 11 11 Storage 17 | . 14 14 16 22 22 Protection 9 | . 6 14 10 11 11 Energy Gun 4 | . 8 14 2 . . Ballistic Gun 18 | . 18 14 16 21 22 Naked Turns . | . . . . . . Heaviest Build 67 | 12 46 47 67 51 51 Greatest Support 20 | 20 20 10 20 20 20 Greatest Overweight (x) 5 | 3 4 4 4 5 2 Average Overweight (x) 1 | 1 1 4 2 2 2 Largest Inventory Capacity 18 | 6 12 12 18 16 16 Average Capacity 13 | 5 9 12 14 16 16 Most Carried 16 | 2 12 12 16 16 16 Average Carried 12 | 1 8 12 13 15 15 Final Capacity 16 | 6 12 12 16 16 16 Final Carried 16 | 2 12 12 16 16 16 Class Distribution -------------------- 70% | Mutant 29% | Scavenger-Mutant Dominant Class ---------------- Mutant | -10/Materials Mutant | -10/Mines Mutant | -9/Materials Scavenger-Mutant | -9/Mines Scavenger-Mutant | -9/Exiles Resources | -11 -10 -10 -9 -9 -9 ----------- Run | Scr Mat Min Mat Min Exi Matter Collected 1895 | 260 335 80 881 339 . Remotely . | . . . . . . Salvage Created 2431 | . 633 94 1445 259 . Parts 159 | . 38 11 91 19 . Haulers Intercepted 6 | . 1 . 5 . . Recyclers Shooed 2 | . 1 . 1 . . Parts Field Recycled . | . . . . . . Retrieved Matter . | . . . . . . Parts Self-Destructed . | . . . . . . Prevented . | . . . . . . Kills | -11 -10 -10 -9 -9 -9 ------- Run | Scr Mat Min Mat Min Exi Combat Hostiles Destroyed 57 | . 17 4 28 8 . Guns 45 | . 13 1 23 8 . AOE 12 | . 4 3 5 . . Classes Destroyed 10 | . 6 . 4 . . Worker 4 | . 1 1 2 . . Builder 1 | . . . 1 . . Tunneler 3 | . 2 . . 1 . Hauler 6 | . 1 . 5 . . Recycler 1 | . . . 1 . . Operator 3 | . 1 . 2 . . Watcher 2 | . . . 2 . . Swarmer 22 | . 6 3 9 4 . Grunt 29 | . 11 1 13 4 . Sentry 6 | . . . 6 . . Best Kill Streak 5 | . 4 3 5 2 . Combat Bots Only 4 | . 4 3 4 2 . Max Kills in Single Turn 3 | . 2 3 3 1 . Gunslinging . | . . . . . . Exploded 3 | . 2 3 2 . . Melee . | . . . . . . Uniques/NPCs Destroyed . | . . . . . . Combat | -11 -10 -10 -9 -9 -9 -------- Run | Scr Mat Min Mat Min Exi Damage Taken 3181 | . 863 190 1621 507 . Core 591 | . 133 84 266 108 . Absorbed by Shields . | . . . . . . Core Remaining (%) 56 | 100 . 13 . . . Volleys Fired 219 | . 73 14 97 35 . Largest 2 | . 2 2 2 2 . Hottest 80 | . 80 76 79 46 . Shots Fired 402 | . 130 27 179 66 . Gun 392 | . 125 26 175 66 . Cannon . | . . . . . . Launcher 10 | . 5 1 4 . . Special . | . . . . . . Kinetic 325 | . 100 13 146 66 . Thermal 32 | . 10 13 9 . . Explosive 10 | . 5 1 4 . . Electromagnetic 35 | . 15 . 20 . . Robot Hit Streak 20 | . 6 6 20 7 . Robot Miss Streak 4 | . 4 2 4 4 . Penetration Max . | . . . . . . Secondary Targets 3 | . 1 1 . 1 . Max Gunslinging Chain 1 | . 1 1 . 1 . Shots Hit Robots 261 | . 81 22 122 36 . Core Hits 121 | . 40 9 61 11 . Critical Hits 6 | . 1 . 3 2 . Critical Kills 2 | . . . 1 1 . Critical Parts Destroyed 4 | . 1 . 2 1 . Melee Attacks 15 | . . . 15 . . Impact . | . . . . . . Slashing 15 | . . . 15 . . Piercing . | . . . . . . Sneak Attacks 3 | . . . 3 . . Combat Hostiles . | . . . . . . Follow-up Attacks . | . . . . . . Damage Inflicted 4685 | . 1241 390 2530 524 . Guns 3463 | . 841 282 1816 524 . Cannons . | . . . . . . Explosions 972 | . 397 108 467 . . Melee 247 | . . . 247 . . Ramming 3 | . 3 . . . . Kinetic 2648 | . 571 123 1430 524 . Thermal 619 | . 205 159 255 . . Explosive 700 | . 294 108 298 . . Electromagnetic 468 | . 168 . 300 . . Impact . | . . . . . . Slashing 247 | . . . 247 . . Piercing . | . . . . . . Highest Corruption 3 | . . . 3 3 3 Average Corruption 2 | . . . 2 3 3 Corruption Purged . | . . . . . . Effects 42 | . . . 12 28 2 Message Errors 6 | . . . 1 4 1 Matter Fused 12 | . . . 4 7 1 Heat Flow Errors 5 | . . . 2 3 . Energy Discharges 8 | . . . 3 5 . Data Loss (minor) 4 | . . . 1 3 . Targeting Errors 7 | . . . 1 6 . Overload Shots . | . . . . . . Overflow Damage 163 | . 10 . 153 . . Projectiles . | . . . . . . Explosions 100 | . 10 . 90 . . Melee 63 | . . . 63 . . Knockbacks . | . . . . . . Impact . | . . . . . . Kinetic . | . . . . . . Secondary . | . . . . . . Self-Inflicted Damage 233 | . 62 37 134 . . Shots 6 | . 2 1 3 . . Rammed . | . . . . . . Targets Rammed 1 | . 1 . . . . Kicked 1 | . 1 . . . . Crushed . | . . . . . . Highest Temperature 384 | . 192 384 151 168 . Average Temperature 57 | . 45 176 43 38 . Received Heat Transfer 1167 | . 348 84 543 192 . Effects 1 | . . 1 . . . Interference 1 | . . 1 . . . Siege Activations . | . . . . . . Robots Corrupted . | . . . . . . Combat Hostiles . | . . . . . . Parts Fried 2 | . . . 2 . . Impact Corruptions . | . . . . . . Robots Melted . | . . . . . . Combat Hostiles . | . . . . . . Parts Melted 3 | . . . 1 2 . Heat Transferred 1154 | . 375 407 372 . . Parts Sabotaged . | . . . . . . Parts Stolen . | . . . . . . Parts Stripped . | . . . . . . Power Chain Reactions 2 | . 2 . . . . Missiles Intercepted . | . . . . . . Alert | -11 -10 -10 -9 -9 -9 ------- Run | Scr Mat Min Mat Min Exi Peak Influence 556 | . 280 127 556 334 . Average Influence 227 | . 136 107 337 196 . Maximum Alert Level 2 | . 1 . 2 1 . Low Security (%) 54 | 100 90 100 22 51 . Level 1 27 | . 9 . 30 48 . Level 2 18 | . . . 46 . . Level 3 . | . . . . . . Level 4 . | . . . . . . Level 5 . | . . . . . . High Security . | . . . . . . Max Security . | . . . . . . Squads Dispatched 8 | . 3 . 5 . . Investigation 4 | . 2 . 2 . . Extermination . | . . . . . . Reinforcement 4 | . 1 . 3 . . Assault . | . . . . . . Garrison . | . . . . . . Intercept . | . . . . . . Construction Impeded 1 | . . . 1 . . Haulers Reinforced . | . . . . . . Stealth | -11 -10 -10 -9 -9 -9 --------- Run | Scr Mat Min Mat Min Exi Distress Signals 4 | . 1 . 3 . . Communications Jammed . | . . . . . . Distress Signals . | . . . . . . Times Spotted 101 | . 29 5 45 22 . Peak Tracking Total 6 | . 4 3 6 5 . Tactical Retreats 9 | . 1 . 2 6 . Traps | -11 -10 -10 -9 -9 -9 ------- Run | Scr Mat Min Mat Min Exi Traps Triggered 5 | . 2 . 3 . . Indirectly . | . . . . . . Trap Hack Attempts . | . . . . . . Triggered . | . . . . . . Disarmed . | . . . . . . Reprogrammed . | . . . . . . Reused . | . . . . . . Traps Extracted . | . . . . . . Installed . | . . . . . . Triggered . | . . . . . . Machines | -11 -10 -10 -9 -9 -9 ---------- Run | Scr Mat Min Mat Min Exi Machines Disabled 6 | . 2 1 3 . . Max in Single Turn 1 | . 1 1 1 . . Machines Sabotaged . | . . . . . . Garrisons Compromised . | . . . . . . Overloaded Fab Kills . | . . . . . . Fab Network Shutdowns . | . . . . . . Hacking | -11 -10 -10 -9 -9 -9 --------- Run | Scr Mat Min Mat Min Exi Machines Accessed 11 | . 3 . 7 . 1 Terminals 7 | . 2 . 5 . . Fabricators . | . . . . . . Repair Stations . | . . . . . . Recycling Units 2 | . 1 . 1 . . Scanalyzers 1 | . . . 1 . . Garrison Access . | . . . . . . Total Hacks 19 | . 7 . 11 . 1 Successful 13 | . 4 . 8 . 1 Failed 6 | . 3 . 3 . . Catastrophic 2 | . . . 2 . . Database Lockouts . | . . . . . . Manual 15 | . 7 . 7 . 1 Terminals 14 | . 6 . 8 . . Fabricators . | . . . . . . Repair Stations . | . . . . . . Recycling Units 2 | . 1 . 1 . . Scanalyzers 2 | . . . 2 . . Garrison Access . | . . . . . . Terminal Hacks 7 | . 2 . 4 . 1 Branch Access Points 2 | . 1 . 1 . . Scanalyzer Index 1 | . . . 1 . . Alert Level 1 | . . . 1 . . Hauler Manifests 1 | . . . 1 . . Zone Layout 1 | . 1 . . . . EX-Prototype ID Bank 1 | . . . . . 1 Fabricator Hacks . | . . . . . . Repair Station Hacks . | . . . . . . Recycling Unit Hacks . | . . . . . . Scanalyzer 2 | . . . 2 . . Insert Component 1 | . . . 1 . . Analyze 1 | . . . 1 . . Garrison Access Hacks . | . . . . . . Unauthorized Hacks 4 | . 2 . 2 . . Terminals 2 | . 1 . 1 . . Operators 2 | . 1 . 1 . . Fabricators . | . . . . . . Repair Stations . | . . . . . . Recycling Units 2 | . 1 . 1 . . Tunnel 2 | . 1 . 1 . . Scanalyzers . | . . . . . . Garrison Access . | . . . . . . Data Cores Recovered . | . . . . . . Used . | . . . . . . Hacking Detections 6 | . 2 . 4 . . Full Trace Events 2 | . 1 . 1 . . Feedback Events . | . . . . . . Feedback Blocked . | . . . . . . Robot Schematics Acquired . | . . . . . . Robots Built . | . . . . . . Matter . | . . . . . . Time . | . . . . . . Total Robot Build Rating . | . . . . . . Part Schematics Acquired 1 | . . . 1 . . Parts Built . | . . . . . . Matter . | . . . . . . Time . | . . . . . . Total Part Build Rating . | . . . . . . Parts Repaired . | . . . . . . Time . | . . . . . . Parts Recycled . | . . . . . . Recycled Matter . | . . . . . . Retrieved Matter . | . . . . . . Retrieved Components . | . . . . . . Parts Scanalyzed 1 | . . . 1 . . Part Schematics Acquired 1 | . . . 1 . . Parts Damaged . | . . . . . . Bothacking | -11 -10 -10 -9 -9 -9 ------------ Run | Scr Mat Min Mat Min Exi Used RIF Installer . | . . . . . . Robots Hacked . | . . . . . . Non-combat . | . . . . . . Combat . | . . . . . . Robot Hacks Applied . | . . . . . . Relay Couplers Released . | . . . . . . Robots Rewired . | . . . . . . Allies Hacked . | . . . . . . Hacks Repelled . | . . . . . . Allies | -11 -10 -10 -9 -9 -9 -------- Run | Scr Mat Min Mat Min Exi Total Allies 3 | . . . . 3 . Largest Group 3 | . . . . 3 . Highest-Rated Group 40 | . . . . 40 . Highest-Rated Ally 16 | . . . . 16 . Total Orders . | . . . . . . Ally Attacks 45 | . . . . 45 . Total Damage 564 | . . . . 564 . Kills 11 | . . . . 11 . Allies Corrupted . | . . . . . . Allies Melted . | . . . . . . Intel | -11 -10 -10 -9 -9 -9 ------- Run | Scr Mat Min Mat Min Exi Robot Analysis Total . | . . . . . . Derelict Logs Recovered 1 | . . . . 1 . Drone Launches . | . . . . . . Drone Recoveries . | . . . . . . Exploration | -11 -10 -10 -9 -9 -9 ------------- Run | Scr Mat Min Mat Min Exi Turns Passed 4636 | 71 1329 171 1734 1117 214 Spaces Moved 2196 | 43 670 79 732 554 118 Core 19 | 19 . . . . . Treads . | . . . . . . Legs 2069 | 24 670 26 677 554 118 Wheels 108 | . . 53 55 . . Hover . | . . . . . . Flight . | . . . . . . Fastest Speed 50 | 50 120 120 120 180 180 Average Speed 171 | 140 160 159 175 181 180 Slowest Speed 270 | 200 240 240 240 270 180 Overloaded Moves . | . . . . . . Propulsion Burnouts . | . . . . . . Robots Hopped . | . . . . . . Cave-ins Triggered . | . . . . . . Exploration Rate (%) 50 | 5 80 25 64 91 40 Regions Visited 5 Branch Regions 3 Pre-discovered Areas 2 | . 1 . 1 . . Known Exits Taken 2 | . 1 . 1 . . Unknown Exits Taken 3 | 1 . 1 . 1 . Scrap Searched 1 | . . . . 1 . Spaces Dug 14 | . 10 . 4 . . Terrain Destroyed 77 | . 26 8 43 . . Melee 4 | . . . 4 . . Projectile . | . . . . . . AOE 73 | . 26 8 39 . . Actions | -11 -10 -10 -9 -9 -9 --------- Run | Scr Mat Min Mat Min Exi Total 2662 | 50 807 95 982 608 120 Wait 105 | . 21 . 73 11 . Move 2191 | 42 669 78 731 553 118 Hop . | . . . . . . Pick Up 37 | 2 17 . 16 1 1 Fast Attach 23 | 6 4 1 11 1 . Attach 15 | . 6 . 6 3 . Detach 2 | . 2 . . . . Swap 30 | . 8 2 17 3 . Drop 24 | . 6 . 16 1 1 Fire 219 | . 73 14 97 35 . Melee 15 | . . . 15 . . Ram . | . . . . . . Kick 1 | . 1 . . . . Crush . | . . . . . . Escape Stasis . | . . . . . . Rewire . | . . . . . . Trap . | . . . . . . Miscellaneous . | . . . . . . Route ------- -11/Scrapyard -10/Materials (discovered 4 exits: *Mat x3 / *Min) -10/Mines -9/Materials (discovered 2 exits: [*Mat] / *Min) -9/Mines (discovered 3 exits: [*Mat x2] / *Exi) -9/Exiles History --------- Turn | Location | Event 31 | -11/Scrapyard | Discovered new exit (range 15) 72 | -11/Scrapyard | Entered Materials 87 | -10/Materials | Identified exit to Mines 227 | -10/Materials | Discovered new exit (range 8) 309 | -10/Materials | Build established: Mutant 352 | -10/Materials | Discovered new exit (range 15) 523 | -10/Materials | Core integrity fell below 50% 575 | -10/Materials | Lost 3 parts (1p1n1w) 1073 | -10/Materials | Discovered new exit (range 15) 1401 | -10/Materials | Entered Mines 1546 | -10/Mines | Core integrity fell below 20% 1561 | -10/Mines | Discovered new exit (range 10) 1572 | -10/Mines | Entered Materials 1572 | -9/Materials | Evolved 2 slots: Utility x2 1947 | -9/Materials | Lost 3 parts (2n1w) 1971 | -9/Materials | Discovered new exit (range 16) 2194 | -9/Materials | Discovered new exit (range 15) 2222 | -9/Materials | Build established: Scavenger-Mutant 2553 | -9/Materials | Core integrity fell below 50% 2575 | -9/Materials | Build established: Mutant 2693 | -9/Materials | Identified exit to Mines 3306 | -9/Materials | Entered Mines 3467 | -9/Mines | Received a Rocket Launcher from a helpful Derelict 3481 | -9/Mines | Discovered new exit (range 5) 3554 | -9/Mines | Core integrity fell below 20% 3666 | -9/Mines | Assisted by bots powering up and referring to "LRC-V3" 3945 | -9/Mines | Learned Materials stockpile data 3991 | -9/Mines | Discovered new exit (range 6) 4163 | -9/Mines | Build established: Scavenger-Mutant 4414 | -9/Mines | Deemed a non-threat by the Exiles lab entrance 4416 | -9/Mines | Discovered new exit (range 5) 4423 | -9/Mines | Entered Exiles 4468 | -9/Exiles | Met 8R-AWN 4494 | -9/Exiles | Met EX-HEX 4553 | -9/Exiles | Met EX-BIN 4576 | -9/Exiles | Aligned with FarCom system 4578 | -9/Exiles | Given EX-Vault access code 4620 | -9/Exiles | Opened EX-Vault 4636 | -9/Exiles | Found Deploy-a-Sentry 4637 | -9/Exiles | Self-destructed Last Messages --------------- 0b10 Alert Chip Cloak of Protection Skeleton Box Trap Reconfigurator Supersonic Drone Bay PSU Rigger Chronowheel AWS/Thermal Latent Energy Streamer Gui. Plasma Cannon Firepult YOLO Cannon AWS/Gauss XL Autogun Array AWS/Autocannon Field Lobotomy Kit Longsword +1 Deploy-a-Sentry 04634_ Dropped Aluminum Leg. 04636_ Acquired Deploy-a-Sentry. Map ----- +----------------------------------------------------+ | | | | | | | | | | | | | | | | | | | | | | | | | | | | | | | | | | | | | | | | | | | | | | | | | ?????????????????????#########???????????????????? | | ?????????????????????# &@ #???????????????????? | | ?????????????????????# &!= #???????????????????? | | ?????????????????????# ! #???????????????????? | | ?????????????????????# X#???????????????????? | | ?????????????????????## ##???????????????????? | | ?????????????????????#X #????????????????????? | | ?????????????????????## #????????????????????? | | ??????????????????????# #????????????????????? | | ??????????????????????# #???#????????????????? | | ??????????????????????# #??""""??????????????? | | ??????????????????????# ## """?????????????? | | ??????????????????????# X""?????????????? | | ??????????????????????# ## """?????????????? | | ????????????????####??# #??""""??????????????? | | ???????????????""""""?# #???#????????????????? | | ???????????????"""" ## #????????????????????? | | ??????????????#""X" #????????????????????? | | ??????????????#" #????????????????????? | | ??????????????#" ## #????????????????????? | | ??????????????#""""""?# #?#########??????????? | | ??????????????##"###??# #?#"""""""#??????????? | | ??????????????? ??????# #?#"""""""#??????????? | | ??????????????????????# #?#"""""""#??????????? | | ?????????????????????## ###"" """"#??????????? | | ?????????????????????#" """"#??????????? | +----------------------------------------------------+ Best States ------------- Heat Dissipation 28 Coolant Potential 100 Energy Generation 12 Energy Capacity 265 Matter Stores 300 Matter Capacity 500 Sight Range 16 Terrain Scan Density 10 Armor Coverage 300 Evasion (%) 40 Item Schematics ----------------- Hacking Suite | -9/Materials | Scanalyzed Robot Schematics ------------------ None Fabricated ------------ Nothing Alien Tech Used ----------------- None Achievements -------------- None Challenges ------------ None Game ------ Seed DirtySmartbombProjector Manual? 0 Play Time 00:22:12 Cumulative 234.6 hours Start 2020.05.30 @ 14:13:59 End 2020.05.30 @ 14:37:11 Sessions 1 Manual Loads 0 Difficulty Rogue Special Mode None Game No. 381 Rogue 381 Adventurer 0 Explorer 0 Win Type - Total 5 Types 3/0/1/1/0/0/0 Lore% 79 Gallery% 80 Achievement% 60 Wizard Run 0 Options --------- ASCII 0 Keyboard 1 Movement Numpad Keybinds 0 Fullscreen 2 Font 18/X11Bold Map View 76x50 Tactical HUD 1 Map Filters NONE Filters NONE Steam 1 RUN: 785d929a-f291-4dff-a6a0-a4af050b5583